Cogmind - Beta 16.1 @@@ ROGUE MODE // 2026.03.12 @ 01:35:34 Player: KURIIRI Result: Destroyed by IB-1LH(R) with Subdweller Shrapnel Launcher Performance ------------- Evolutions (0) 0 Regions Visited (3) 600 Robots Destroyed (27) 135 Value Destroyed (580) 580 Prototype IDs (13) 260 Alien Tech Used (0) 0 Bonus (-212) -212 TOTAL SCORE: 1363 Bonus ------- Friendly Fire -212 Cogmind --------- Core Integrity 0/250 Matter 300/300 Energy 180/180 System Corruption 1% Temperature Cool (0) Movement Treading (160) Location -10/Subcaves Parts ------- > --- POWER (1) -------- Meta Core > --- PROPULSION (2+1) - Light Treads Light Treads > --- UTILITY (2+1) ---- Small Storage Unit Subdweller Optics > --- WEAPON (2+1) ----- Medium Laser > --- INVENTORY (8) ---- Compact Wheel 1B-0RG's Assimilator Datajack Peak State ------------ > --- POWER ------------ Meta Core > --- PROPULSION ------- Light Treads Light Treads > --- UTILITY ---------- Small Storage Unit Subdweller Optics > --- WEAPON ----------- EM Pulse Gun Medium Laser > --- INVENTORY -------- Compact Wheel 1B-0RG's Assimilator Datajack [Rating: 26] Favorites ----------- Power Ion Engine Engine Ion Engine Power Core Meta Core Propulsion Light Treads Treads Light Treads Leg Aluminum Leg Utility Small Storage Unit Device Heat Sink Storage Small Storage Unit Weapon EM Pulse Gun Energy Gun EM Pulse Gun Ballistic Gun Light Assault Rifle Launcher Grenade Launcher Build | -11 -10 -10 -10 ------- Run | Yrd Mat Min Sub Slots Evolved . | . . . . Power . | . . . . Propulsion . | . . . . Utility . | . . . . Weapon . | . . . . Parts Attached 8 | 3 3 . 2 Power 1 | . . . 1 Engine . | . . . . Core 1 | . . . 1 Reactor . | . . . . Propulsion 3 | 2 1 . . Treads 3 | 2 1 . . Leg . | . . . . Wheel . | . . . . Hover . | . . . . Flight . | . . . . Utility 2 | . 1 . 1 Device 2 | . 1 . 1 Storage . | . . . . Processor . | . . . . Hackware . | . . . . Protection . | . . . . Artifact . | . . . . Weapon 2 | 1 1 . . Energy Gun 1 | 1 . . . Energy Cannon . | . . . . Ballistic Gun . | . . . . Ballistic Cannon . | . . . . Launcher 1 | . 1 . . Special Weapon . | . . . . Impact Weapon . | . . . . Slashing Weapon . | . . . . Piercing Weapon . | . . . . Special Melee Weapon . | . . . . Unidentified Prototypes . | . . . . Parts Lost 3 | . . . 3 Power . | . . . . Propulsion . | . . . . Utility 1 | . . . 1 Weapon 2 | . . . 2 Highest Loss Streak 1 | . . . 1 To Critical Strikes . | . . . . Average Backups 4 | 3 3 5 4 Power . | 1 1 1 . Propulsion 1 | 2 1 2 1 Utility . | . . . . Weapon . | . . 1 . Tool/Special . | . . . . Unused Backups 3 | . . . 3 Power 1 | . . . 1 Propulsion . | . . . . Utility . | . . . . Weapon . | . . . . Tool/Special 2 | . . . 2 Average Slot Usage (%) 93 | . 97 100 82 Engine 12 | . 14 14 7 Core 1 | . . . 4 Treads 26 | . 27 28 24 Device 11 | . 11 14 8 Storage 13 | . 14 14 12 Energy Gun 19 | . 24 14 15 Launcher 7 | . 3 14 9 Peak Build Rating 26 | 6 7 7 26 Average Rating 9 | 6 6 7 16 On Entrance 6 | 6 6 7 7 Avg Prop Armor Cover (%) . | . . . . Naked Turns . | . . . . Heaviest Build 17 | 14 16 16 17 Greatest Support 40 | 40 40 40 40 Greatest Overweight (x) . | . . . . Average Overweight (x) . | . . . . Largest Inventory Capacity 8 | 8 8 8 8 Average Capacity 8 | 8 8 8 8 Most Carried 8 | 5 5 5 8 Average Carried 4 | 3 3 5 6 Final Capacity 8 | 8 8 8 8 Final Carried 7 | 2 5 5 7 Class Distribution -------------------- 100% | Mutant Dominant Class ---------------- Mutant | -10/Materials Mutant | -10/Mines Mutant | -10/Subcaves Resources | -11 -10 -10 -10 ----------- Run | Yrd Mat Min Sub Matter Collected 406 | 200 50 86 70 Remotely . | . . . . Salvage Created 735 | . 502 107 126 Parts 48 | . 32 12 4 Haulers Intercepted 1 | . 1 . . Recyclers Shooed 1 | . 1 . . Parts Field Recycled . | . . . . Retrieved Matter . | . . . . Parts Self-Destructed 3 | . . . 3 Prevented . | . . . . Parts Restored . | . . . . Kills | -11 -10 -10 -10 ------- Run | Yrd Mat Min Sub Combat Hostiles Destroyed 17 | . 7 8 2 Guns 7 | . 5 . 2 AOE 10 | . 2 8 . Classes Destroyed 8 | . 6 1 1 Worker 3 | . 2 1 . Hauler 1 | . 1 . . Recycler 1 | . 1 . . Operator 1 | . 1 . . Watcher 3 | . 3 . . Swarmer 6 | . . 6 . Grunt 9 | . 7 2 . Subdweller 2 | . . . 2 Thug 1 | . . . 1 Best Kill Streak 8 | . 8 4 1 Combat Bots Only 4 | . 4 3 1 Max Kills in Single Turn 4 | . 4 2 1 Gunslinging . | . . . . Exploded 2 | . 2 2 . Melee . | . . . . Uniques/NPCs Destroyed . | . . . . Combat | -11 -10 -10 -10 -------- Run | Yrd Mat Min Sub Hostile Shots Fired 49 | . 33 10 6 Missed 18 | . 15 3 . Hits 31 | . 18 7 6 Projectile 31 | . 18 7 6 AOE 1 | . . . 1 Damage Taken 738 | . 261 190 287 Core 256 | . 52 82 122 Absorbed by Shields . | . . . . Regen/Repaired (Parts) 86 | . 86 . . Core Remaining (%) 100 | 100 . . . Volleys Fired 44 | 1 26 6 11 Largest 2 | 2 2 2 2 Hottest 90 | 90 90 70 90 Shots Fired 73 | 2 48 7 16 Gun 62 | 2 48 1 11 Cannon . | . . . . Launcher 11 | . . 6 5 Special . | . . . . Kinetic . | . . . . Thermal 27 | 1 22 . 4 Explosive 11 | . . 6 5 Electromagnetic 35 | 1 26 1 7 Robot Hit Streak 10 | 1 10 2 5 Robot Miss Streak 2 | 1 2 1 1 Penetration Max . | . . . . Secondary Targets . | . . . . Shots Hit Robots 41 | 1 31 3 6 Core Hits 47 | 1 24 11 11 Critical Kills . | . . . . Critical Parts Destroyed . | . . . . Critical Strikes 4 | 1 2 . 1 Burn 2 | 1 1 . . Corrupt 2 | . 1 . 1 Melee Attacks . | . . . . Impact . | . . . . Slashing . | . . . . Piercing . | . . . . Sneak Attacks . | . . . . Combat Hostiles . | . . . . Follow-up Attacks . | . . . . Damage Inflicted 1421 | 13 675 460 273 Guns 557 | 13 459 13 72 Cannons . | . . . . Explosions 855 | . 212 442 201 Melee . | . . . . Ramming 9 | . 4 5 . Kinetic . | . . . . Thermal 471 | 13 363 57 38 Explosive 586 | . . 385 201 Electromagnetic 355 | . 308 13 34 Impact . | . . . . Slashing . | . . . . Piercing . | . . . . Highest Corruption 1 | . 1 1 1 Average Corruption 1 | . 1 1 1 Corruption Purged . | . . . . Corruption Blocked . | . . . . Effects 8 | . 3 3 2 Message Errors 1 | . . 1 . Matter Fused 1 | . 1 . . Heat Flow Errors 2 | . 1 1 . Energy Discharges 2 | . . . 2 Data Loss (minor) 1 | . 1 . . Data Loss (major) 1 | . . 1 . Overload Shots . | . . . . Overflow Damage 57 | . . 53 4 Projectiles . | . . . . Explosions 57 | . . 53 4 Melee . | . . . . Knockbacks 1 | . 1 . . Impact 1 | . 1 . . Kinetic . | . . . . Secondary . | . . . . Self-Inflicted Damage 271 | . 47 113 111 Shots 10 | . 2 4 4 Rammed 3 | . 2 1 . Targets Rammed 3 | . 2 1 . Kicked . | . . . . Crushed . | . . . . Highest Temperature 264 | 30 264 233 . Average Temperature 85 | 20 84 117 . Received Heat Transfer 171 | . 117 24 30 Effects 2 | . 2 . . Interference 2 | . 2 . . Siege Activations . | . . . . Martial Activations . | . . . . Shielding Activations . | . . . . Robots Disrupted . | . . . . Combat Hostiles . | . . . . Robots Corrupted . | . . . . Combat Hostiles . | . . . . Parts Fried . | . . . . Impact Corruptions . | . . . . Robots Melted . | . . . . Combat Hostiles . | . . . . Parts Melted 2 | . 1 . 1 Heat Transferred 1040 | 111 768 50 111 Parts Sabotaged . | . . . . Parts Stolen . | . . . . Parts Stripped . | . . . . Power Chain Reactions 3 | . 3 . . Alert | -11 -10 -10 -10 ------- Run | Yrd Mat Min Sub Maximum Alert Level . | . . . . Low Security (%) 100 | 100 100 100 . Level 1 . | . . . . Level 2 . | . . . . Level 3 . | . . . . Level 4 . | . . . . Level 5 . | . . . . High Security . | . . . . Max Security . | . . . . Peak Influence 186 | . 123 186 . Initial 6 | . . 6 . Average 70 | . 49 112 . Influence Increases 547 | . 287 260 . Destroy 0b10 Robot/C 300 | . 140 160 . Destroy 0b10 Robot/NC 45 | . 40 5 . Destroy Leader 68 | . 38 30 . Allied During Kill 6 | . . 6 . Successful Hack 27 | . 27 . . Disable Machine 30 | . 15 15 . Destroy Structure 56 | . 12 44 . Lose Combat Pursuer 15 | . 15 . . Influence Decreases 547 | . 270 237 40 Entered New Map 32 | . . 11 21 Time Decay 495 | . 270 206 19 Lost Ally 20 | . . 20 . Squads Dispatched 1 | . 1 . . Investigation 1 | . 1 . . Extermination . | . . . . Reinforcement . | . . . . Assault . | . . . . Garrison . | . . . . Intercept . | . . . . Searches Triggered . | . . . . Construction Impeded . | . . . . Haulers Reinforced . | . . . . Active Scanning Responses . | . . . . Cargo Convoy Interrupts . | . . . . Stealth | -11 -10 -10 -10 --------- Run | Yrd Mat Min Sub Distress Signals 1 | . 1 . . Communications Jammed . | . . . . Distress Signals . | . . . . Times Spotted 21 | . 12 6 3 Peak Tracking Total 4 | . 4 2 2 Tactical Retreats 1 | . 1 . . Traps | -11 -10 -10 -10 ------- Run | Yrd Mat Min Sub Traps Triggered . | . . . . Indirectly . | . . . . Trap Hack Attempts . | . . . . Triggered . | . . . . Disarmed . | . . . . Reprogrammed . | . . . . Reused . | . . . . Traps Extracted . | . . . . Installed . | . . . . Triggered . | . . . . Machines | -11 -10 -10 -10 ---------- Run | Yrd Mat Min Sub Machines Disabled 4 | . 1 1 2 Max in Single Turn 2 | . 1 1 2 Machines Repaired . | . . . . Machines Dismantled . | . . . . Machines Sabotaged . | . . . . Overloaded Fab Kills . | . . . . Hacking | -11 -10 -10 -10 --------- Run | Yrd Mat Min Sub Machines Accessed 6 | . 5 . 1 Terminals 4 | . 4 . . Fabricators . | . . . . Repair Stations 1 | . 1 . . Recycling Units . | . . . . Scanalyzers . | . . . . Garrison Access . | . . . . Total Hacks 21 | . 12 . 9 Successful 15 | . 6 . 9 Failed 6 | . 6 . . Catastrophic 2 | . 2 . . Database Lockouts . | . . . . Manual 10 | . 10 . . Terminals 10 | . 10 . . Fabricators . | . . . . Repair Stations 2 | . 2 . . Recycling Units . | . . . . Scanalyzers . | . . . . Garrison Access . | . . . . Terminal Hacks 11 | . 2 . 9 Record 8 | . . . 8 Robot Analysis 2 | . 2 . . Proto ID Catalog 1 | . . . 1 Fabricator Hacks . | . . . . Repair Station Hacks 2 | . 2 . . Scan Component 1 | . 1 . . Repair 1 | . 1 . . Recycling Unit Hacks . | . . . . Scanalyzer . | . . . . Garrison Access Hacks . | . . . . Unauthorized Hacks 2 | . 2 . . Terminals 2 | . 2 . . Botnet 1 | . 1 . . Skim 1 | . 1 . . Fabricators . | . . . . Repair Stations . | . . . . Recycling Units . | . . . . Scanalyzers . | . . . . Garrison Access . | . . . . Data Cores Recovered 1 | . 1 . . Used . | . . . . Hacking Detections 4 | . 4 . . Full Trace Events 1 | . 1 . . Feedback Events 1 | . 1 . . Corruption 1 | . 1 . . Feedback Blocked . | . . . . Robot Schematics Acquired . | . . . . Robots Built . | . . . . Authchips . | . . . . Time . | . . . . Total Robot Build Rating . | . . . . Part Schematics Acquired . | . . . . Parts Built . | . . . . Authchips . | . . . . Time . | . . . . Total Part Build Rating . | . . . . Part Studies Acquired . | . . . . Parts Repaired 1 | . 1 . . Time 26 | . 26 . . Parts Recycled . | . . . . Recycled Matter . | . . . . Retrieved Matter . | . . . . Retrieved Components . | . . . . Parts Scanalyzed . | . . . . Part Schematics Acquired . | . . . . Parts Damaged . | . . . . Bothacking | -11 -10 -10 -10 ------------ Run | Yrd Mat Min Sub Used RIF Installer . | . . . . Robots Hacked . | . . . . Non-combat . | . . . . Combat . | . . . . Robot Hacks Applied . | . . . . Relay Couplers Released . | . . . . Fabnet Peak Effective % . | . . . . Robots Rewired . | . . . . Allies Hacked . | . . . . Hacks Repelled . | . . . . Allies | -11 -10 -10 -10 -------- Run | Yrd Mat Min Sub Total Allies 2 | . . 2 . Largest Group 2 | . . 2 1 Highest-Rated Group 42 | . . 42 31 Highest-Rated Ally 31 | . . 31 31 Total Orders . | . . . . Ally Attacks . | . . . . Total Damage . | . . . . Kills . | . . . . Allies Corrupted . | . . . . Allies Melted . | . . . . Intel | -11 -10 -10 -10 ------- Run | Yrd Mat Min Sub Active Infowar (turns) 161 | . . . 161 Optics 161 | . . . 161 Robot Analysis Total 2 | . 2 . . Derelict Logs Recovered 1 | . . 1 . Drone Launches . | . . . . Drone Recoveries . | . . . . Exploration | -11 -10 -10 -10 ------------- Run | Yrd Mat Min Sub Turns Passed 1838 | 10 836 431 561 Spaces Moved 977 | 1 445 246 285 Core . | . . . . Treads 977 | 1 445 246 285 Legs . | . . . . Wheels . | . . . . Hover . | . . . . Flight . | . . . . Fastest Speed 160 | 160 160 160 160 Average Speed 160 | 160 160 160 160 Slowest Speed 160 | 160 160 160 160 Overloaded Moves . | . . . . Propulsion Burnouts . | . . . . Robots Hopped . | . . . . Potential Cave-ins . | . . . . Cave-ins Triggered . | . . . . Exploration Rate (%) 38 | 2 71 58 21 Regions Visited 3 Branch Regions 2 Pre-discovered Areas 1 | . . . 1 Known Exits Taken . | . . . . Unknown Exits Taken 3 | 1 1 1 . Scrap Searched . | . . . . Spaces Dug 15 | . . 7 8 Terrain Destroyed 70 | . 10 44 16 Melee . | . . . . Projectile . | . . . . AOE 70 | . 10 44 16 Terrain Rammed . | . . . . Walls Destroyed . | . . . . Machines Disabled . | . . . . Actions | -11 -10 -10 -10 --------- Run | Yrd Mat Min Sub Total 1176 | 8 518 276 374 Wait 136 | . 40 24 72 Move 974 | . 444 245 285 Hop . | . . . . Pick Up 3 | . 2 . 1 Fast Attach 3 | . 2 . 1 Attach 1 | . . . 1 Detach . | . . . . Swap 6 | 3 2 . 1 Drop 6 | 4 . . 2 Fire 44 | 1 26 6 11 Melee . | . . . . Ram . | . . . . Kick . | . . . . Crush 3 | . 2 1 . Escape Stasis . | . . . . Rewire . | . . . . Trap . | . . . . Miscellaneous . | . . . . Route ------- -11/Scrapyard -10/Materials (discovered 4 exits: *Mat x2 / [*Min] / *Sub) -10/Mines (discovered 3 exits: *Mat x2 / *Sub) -10/Subcaves History --------- Turn | Location | Event 11 | -11/Scrapyard | Discovered new exit (range 0) 11 | -11/Scrapyard | Entered Materials 179 | -10/Materials | Discovered new exit (range 16) 293 | -10/Materials | Discovered new exit (range 14) 315 | -10/Materials | Build established: Mutant 406 | -10/Materials | Discovered new exit (range 4) 612 | -10/Materials | Discovered new exit (range 15) 737 | -10/Materials | Repaired Lgt. Treads 847 | -10/Materials | Entered Mines 921 | -10/Mines | Discovered new exit (range 8) 932 | -10/Mines | Identified exit to Materials 1020 | -10/Mines | Core integrity fell below 50% 1153 | -10/Mines | Discovered new exit (range 11) 1278 | -10/Mines | Entered Subcaves 1278 | -10/Subcaves | Accompanied by 1 ally 1283 | -10/Subcaves | Led the pair of lost Derelicts to an unsafe place 1301 | -10/Subcaves | Learned location of Zion (-7) 1301 | -10/Subcaves | Met a Zionite searching for "candidates" 1513 | -10/Subcaves | Visited 4L-MR0's lab 1530 | -10/Subcaves | Found Prototype Special Melee Weapon 1570 | -10/Subcaves | Found Meta Core 1571 | -10/Subcaves | Attached Meta Core, gained temporary slots: Propulsion, Utility, Weapon 1835 | -10/Subcaves | Core integrity fell below 20% 1839 | -10/Subcaves | Destroyed by IB-1LH(R) with Subdweller Shrapnel Launcher Last Messages --------------- 01563_ ZZ-3EV(g) destroyed. 01563_ Machine disabled. 01570_ Acquired Meta Core. 01571_ Core temporarily expanded with Propulsion slot. 01571_ Core temporarily expanded with Utility slot. 01571_ Core temporarily expanded with Weapon slot. 01631_ System corrupted: Energy discharge (-68). 01664_ Grenade Launcher destroyed. 01667_ 9I-0EM(R) destroyed. 01675_ Acquired 52 matter. 01678_ Acquired Sub. Optics. 01686_ Acquired 18 matter. 01691_ The unstable cave ceiling collapses. 01836_ EM Pulse Gun destroyed. 01837_ Sub. Monowheel melted. 01837_ 1I-C6N(R) destroyed. 01839_ Subatomizers dissect the Sub. Laser. Map ----- +----------------------------------------------------+ | ##????????????????????????????????# ## | | #????????????????????????????????## ##? | | ## ##???????????????????????????????# #?? | | #?# #???????????????????????????????# #?? | | #?## ##???????????????????????????????## #?? | | #??# #?????????????????????????????????####?? | | ???# #??????????????????????????????????????? | | ????## #??????????????????????????????????????? | | ??????# #??????????????????????????????????????? | | ?????## ##?????????????????????????????????????? | | ?????## ##????????????????????????????????????? | | ?????# ##???????????????????????????????????? | | ????## ##???????####???????????????????????? | | ????# #????#### ##??????????????????????? | | ????## ## ##??## ##??###????????????????? | | ?????##?##### #### ### ##???????????????? | | ???????????## ##??????????????? | | ???????????# #??????????????? | | ???????????# #??????????????????? | | ???????????## ##?##???????????????? | | ????????????# ## #???????????????? | | ?????????# #???????????????? | | ????????# ## #???????????????? | | ???????# ###### #???????????????? | | ??????# #????# #???????????????? | | ??????# ### ##????# @###"" #??????????????? | | ??????# #??## #????# #??######??????????????? | | ??????###????#####????# #??????????????????????? | | ?????????????????????# #??????????????????????? | | ????????????????????# #??????????????????????? | | ????????????????????# R ##??????????????????????? | | ????????????????????# [%#???????????????????????? | | ????????????????????# ! ???????????????????????? | | ????????????????????# ???????????????????????? | | ????????????????????# # ???????????????????????? | | ????????????????????# ?#???????????????????????? | | ????????????????????## ?????????????????????????? | | ?????????????????????# ?????????????????????????? | | ????????????????????? ?????????????????????????? | | ????????????????????? ?????????????????????????? | | ????????????????????? ?????????????????????????? | | ???????????????????? ?????????????????????????? | | ???????????????????? ?????????????????????????? | | ???????????????????? ?????????????????????????? | | ????????????????????? ???????????????????????????? | | ?????????????????????????????????????????????????? | | ?????????????????????????????????????????????????? | | ?????????????????????????????????????????????????? | | ?????????????????????????????????????????????????? | | ?????????????????????????????????????????????????? | +----------------------------------------------------+ Best States ------------- Heat Dissipation 35 Energy Generation 17 Energy Capacity 250 Matter Stores 300 Matter Capacity 300 Sight Range 21 Terrain Scan Density 10 Evasion (%) 40 Recoil Reduction 2 Item Schematics ----------------- None Robot Schematics ------------------ None Fabricated ------------ Nothing Repaired ---------- Lgt. Treads | 38% | -10/Materials Studied --------- None Alien Tech Used ----------------- None Achievements -------------- Mistaken Identity Challenges ------------ None Game ------ Seed TacticalGlidesysKatana Manual? 0 Play Time 00:12:47 Cumulative 330.7 hours Start 2026.03.12 @ 01:25:53 End 2026.03.12 @ 01:35:34 Sessions 1 Manual Loads 0 Difficulty Rogue Special Mode None Game No. 274 Rogue 238 Adventurer 36 Explorer 0 Win Type - Total 4 Types 2/0/0/1/0/0/0/1/0/0 Lore% 59 Gallery% 62 Achievement% 43 Wizard Run 0 Options --------- Layout 1 ASCII 0 Keyboard 0 Movement Numpad Keybinds 0 Fullscreen 1 Font 48/Smallcaps Map View 50x35 Zoom Use 0% Tactical HUD 1 Map Filters NONE Filters NONE Steam 1 RUN: eb1f3e57-6171-40b3-b7f4-2f7788367623